bitfinex/quotes_ETHUSD_20251201
["timestamp","ask_amount","ask_price","bid_price","bid_amount"]
[1764570229784,31.48473839,2832.5,2831.9,23.37]
[1764570230064,31.79873839,2832.5,2831.9,23.37]
[1764570230268,32.26193839,2832.5,2831.9,23.37]
[1764570230571,35.79238852,2832.5,2831.9,23.37]
[1764570230942,28.14289552,2832.5,2831.9,23.37]
[1764570231656,5.79238852,2832.5,2831.9,23.37]
[1764570231965,35.79238852,2832.5,2831.9,23.37]
[1764570233484,29.74710952,2832.5,2831.9,23.37]
[1764570233681,29.30746052,2832.5,2831.9,23.37]
[1764570233881,30.64624152,2832.5,2831.9,23.37]
[1764570234787,33.98904952,2832.5,2831.9,23.37]
[1764570235090,24.64600252,2832.5,2831.9,23.37]
[1764570235382,24.69600252,2832.5,2831.9,23.37]
[1764570235743,35.84238852,2832.5,2831.9,23.37]
[1764570236847,35.79238852,2832.5,2831.9,23.37]
[1764570238660,42.10238852,2832.5,2831.9,23.37]
[1764570239398,36.96176952,2832.5,2831.9,23.37]
[1764570239691,31.36806752,2832.5,2831.9,23.37]
[1764570239992,34.63133252,2832.5,2831.9,23.37]
[1764570240289,26.61142652,2832.5,2831.9,23.37]
[1764570240859,31.47354152,2832.5,2831.9,23.37]
[1764570241173,31.26948852,2832.5,2831.9,23.37]
[1764570241892,34.70339152,2832.5,2831.9,23.37]
[1764570242388,34.70539152,2832.5,2831.9,23.37]
[1764570242680,34.44821652,2832.5,2832.1,0.001]
[1764570242895,31.75653252,2832.5,2832.1,0.001]
[1764570243963,12.13098852,2832.5,2832.1,0.001]
[1764570244168,33.13872752,2832.5,2832.1,0.001]
[1764570244955,33.08089952,2832.5,2832.1,0.001]
[1764570245186,33.30489952,2832.5,2832.1,0.001]
[1764570246167,33.99965952,2832.5,2832.1,0.001]
[1764570246892,32.35289952,2832.5,2832.1,0.001]
[1764570247092,32.18063752,2832.5,2832.1,0.001]
[1764570247786,30.96269052,2832.5,2832.1,0.001]
[1764570248165,34.82312652,2832.5,2832.1,0.001]
[1764570248369,30.44755252,2832.5,2832.1,0.001]
[1764570249160,37.90939352,2832.5,2832.1,0.001]
[1764570249367,37.38069352,2832.5,2832.1,0.001]
[1764570249686,34.53346152,2832.5,2832.1,0.001]
[1764570250382,42.92174148,2832.5,2832.1,0.001]
[1764570251285,43.73297348,2832.5,2832.1,0.001]
[1764570251673,18.69086748,2832.5,2832.1,0.001]
[1764570251870,55.25074644,2832.5,2832.1,0.001]
[1764570252385,55.25074644,2832.5,2832.4,65.25894447]
[1764570252577,55.30074644,2832.5,2832.4,65.25894447]
[1764570253287,31.52187248,2832.5,2832.4,65.25894447]
[1764570253666,32.01167248,2832.5,2832.4,65.25894447]
[1764570254184,43.30667348,2832.5,2832.4,65.25894447]
[1764570254592,42.64131148,2832.5,2832.4,65.25894447]
[1764570254887,24.45281748,2832.5,2832.4,65.25894447]
[1764570255087,13.59085952,2832.5,2832.4,66.20714447]
[1764570255294,17.26006052,2832.5,2832.4,66.20714447]
[1764570255592,15.87255952,2832.5,2832.4,66.20714447]
[1764570255771,13.33051352,2832.5,2832.4,66.20714447]
[1764570256282,16.29203652,2832.5,2832.4,66.20714447]
[1764570256491,6.98134752,2832.5,2832.4,66.20714447]
[1764570256681,7.38685152,2832.5,2832.4,66.20714447]
[1764570257077,7.38308052,2832.5,2832.4,66.20714447]
[1764570257388,0.35564028,2832.5,2832.4,69.63156745]
[1764570257565,0.57964028,2832.5,2832.4,69.63156745]
[1764570257779,0.98514428,2832.5,2832.4,69.63156745]
[1764570258162,4.51559441,2832.5,2832.4,69.63156745]
[1764570258380,0.98514428,2832.5,2832.4,69.63156745]
[1764570258572,4.51559441,2832.5,2832.4,69.63156745]
[1764570259388,4.29159441,2832.5,2832.4,69.63156745]
[1764570259565,4.51559441,2832.5,2832.4,69.63156745]
[1764570260465,0.98514428,2832.5,2832.4,69.63156745]
[1764570262080,0.57964028,2832.5,2832.4,69.63156745]
[1764570263280,4.51559441,2832.5,2832.4,69.63156745]
[1764570263483,0.98514428,2832.5,2832.4,66.20714447]
[1764570266011,0.57964028,2832.5,2832.4,66.20714447]
[1764570266169,0.35564028,2832.5,2832.4,66.20714447]
[1764570271913,0.002,2832.5,2832.4,69.73771924]
[1764570272980,0.002,2832.5,2832.4,66.20714447]
[1764570273180,0.35564028,2832.5,2832.4,73.16214222]
[1764570273777,0.35364029,2832.5,2832.4,72.21394222]
[1764570273984,0.35364029,2832.5,2832.4,72.66844222]
[1764570274394,0.35364029,2832.5,2832.4,73.12894222]
[1764570275118,0.35364029,2832.8,2832.4,76.65951699]
[1764570275283,0.19018458,2833.1,2832.5,3.92022748]
[1764570275482,0.94932887,2833.1,2833.0,0.4545]
[1764570275885,0.94932887,2833.1,2833.0,0.915]
[1764570276124,4.47903131,2833.1,2833.0,0.4545]
[1764570276912,0.94932887,2833.1,2833.0,0.915]
[1764570277607,0.95132887,2833.1,2833.0,0.915]
[1764570278199,0.002,2833.1,2833.0,0.915]
[1764570278431,0.002,2833.1,2833.0,4.88933436]
[1764570279098,0.35564029,2833.1,2833.0,4.88933436]
[1764570279304,0.002,2833.1,2833.0,4.88933436]
[1764570280187,0.35564029,2833.1,2833.0,1.35950733]
[1764570280382,0.35564029,2833.1,2833.0,0.915]
[1764570280820,0.35564029,2833.1,2833.0,0.4545]
[1764570281317,0.35564029,2833.1,2833.0,0.915]
[1764570282631,0.35564029,2833.1,2833.0,0.4545]
[1764570283112,0.35564029,2833.1,2833.0,0.915]
[1764570283312,0.35564029,2833.1,2833.0,0.4545]
[1764570283506,0.35564029,2833.1,2833.0,1.31345662]
[1764570284098,0.35564029,2833.1,2833.0,0.85295662]
[1764570284689,0.35564029,2833.1,2833.0,1.31345662]
[1764570287212,0.35564029,2833.1,2833.0,0.915]
[1764570287412,0.35564029,2833.1,2833.0,0.4545]
[1764570287617,0.35564029,2833.1,2833.0,0.915]
[1764570291003,0.35564029,2833.1,2833.0,0.4545]
[1764570291407,0.35564029,2833.1,2833.0,0.915]
[1764570292106,3.88534273,2833.1,2833.0,0.4545]
[1764570292313,0.35364029,2832.5,2832.4,65.25894447]
[1764570292748,0.35364029,2832.5,2832.4,65.71344447]
[1764570293150,0.35364029,2832.7,2832.4,69.62746745]
[1764570293355,0.35364029,2832.7,2832.5,0.5249045]
[1764570293682,0.35364029,2832.7,2832.6,0.4838]
[1764570294112,0.35364029,2832.7,2832.6,0.9734]
[1764570294311,0.35364029,2832.7,2832.6,0.4838]
[1764570294639,0.35364029,2832.5,2832.4,65.25894447]
[1764570294838,0.35364029,2832.5,2832.4,68.68336745]
[1764570295012,0.35364029,2832.5,2832.4,69.65676745]
[1764570296720,0.35364029,2832.5,2832.4,65.74274447]
[1764570297523,0.35364029,2832.5,2832.4,66.23234447]
[1764570300410,0.223,2832.7,2832.4,66.23234447]
[1764570300616,0.35364029,2832.5,2832.4,68.78951924]
[1764570301019,0.35364029,2832.5,2832.4,66.23234447]
[1764570301220,0.35364029,2832.5,2832.4,69.65676745]
[1764570301512,0.80834029,2832.5,2832.4,68.68336745]
[1764570301816,0.80834029,2832.5,2832.4,65.25894447]
[1764570302217,1.28964029,2832.5,2832.4,65.25894447]
[1764570302745,0.80834029,2832.5,2832.4,65.25894447]
[1764570303742,0.35364029,2832.5,2832.4,65.25894447]
[1764570305880,0.80834029,2832.5,2832.4,65.25894447]
[1764570306456,0.35364029,2832.5,2832.4,69.16716745]
[1764570308486,0.35364029,2832.5,2832.4,69.65676745]
[1764570309874,0.35364029,2832.6,2832.4,73.18734222]
[1764570310079,0.35364029,2832.6,2832.5,0.5249045]
[1764570310261,0.35364029,2832.6,2832.5,4.39782298]
[1764570310679,0.35358948,2832.6,2832.5,3.90822298]
[1764570311186,0.35358948,2832.6,2832.5,4.39782298]
[1764570313085,0.35358948,2832.6,2832.5,7.96357761]
[1764570313391,0.35358948,2832.6,2832.5,7.92827311]
[1764570313556,0.35358948,2832.6,2832.5,4.39782298]
[1764570313761,0.35358948,2832.6,2832.5,3.90822298]
[1764570315801,1.28958948,2832.6,2832.4,68.68336745]
[1764570315990,0.43998948,2832.5,2832.4,65.25894447]
[1764570316360,0.35358948,2832.5,2832.4,65.74274447]
[1764570317987,0.35358948,2832.5,2832.4,66.23234447]
[1764570319308,0.35358948,2832.5,2832.4,65.74274447]
[1764570321491,0.35358948,2832.5,2832.4,69.16716745]
[1764570322897,0.35358948,2832.6,2832.4,69.16716745]
[1764570323330,0.35358948,2832.6,2832.5,0.4881045]
[1764570327661,0.35558948,2832.6,2832.5,0.4881045]
[1764570328450,0.002,2832.6,2832.5,7.04156724]
[1764570328633,0.35558948,2832.6,2832.5,14.43913585]
[1764570329921,0.002,2832.6,2832.5,10.90868572]
[1764570330124,0.35558948,2832.6,2832.5,10.43068572]
[1764570331324,0.35558948,2832.6,2832.5,10.90988572]
[1764570332329,0.35558948,2832.6,2832.5,13.96113585]
[1764570332655,0.35558948,2832.6,2832.5,14.44033585]
[1764570332656,0.002,2832.6,2832.5,14.44033585]
[1764570332870,0.002,2832.6,2832.5,20.99379859]
[1764570333035,0.002,2832.6,2832.5,14.44033585]
[1764570333877,0.002,2832.6,2832.5,14.66333585]
[1764570336544,0.002,2832.6,2832.5,14.44033585]
[1764570336870,0.002,2832.6,2832.5,21.21679859]
[1764570337073,0.002,2833.1,2832.8,0.4962]
[1764570337371,0.002,2833.1,2833.0,14.32871959]
[1764570337615,0.002,2833.2,2833.1,0.72559411]
[1764570337772,0.002,2833.2,2833.1,1.45489113]
[1764570338075,0.002,2833.4,2833.1,1.93409113]
[1764570338252,0.002,2833.4,2833.3,13.60312548]
[1764570338450,0.002,2833.4,2833.3,13.82612548]
[1764570338770,0.002,2833.4,2833.3,16.53411301]
[1764570338971,0.002,2833.4,2833.3,9.98065027]
[1764570340274,0.002,2833.4,2833.3,20.06356629]
[1764570340476,0.002,2833.4,2833.3,13.51010355]
[1764570341059,0.002,2833.4,2833.3,20.06356629]
[1764570341251,0.002,2833.4,2833.3,13.51010355]
[1764570342072,0.002,2833.4,2833.3,13.28710355]
[1764570342274,0.002,2833.4,2833.3,13.51010355]
[1764570345660,0.002,2833.4,2833.3,20.06356629]
[1764570346162,0.002,2833.4,2833.3,13.51010355]
[1764570350200,0.002,2833.4,2833.3,13.28710355]
[1764570350403,0.002,2833.4,2833.3,13.51010355]
[1764570352281,0.002,2833.4,2833.3,20.06356629]
[1764570356488,0.002,2833.4,2833.3,13.51010355]
[1764570357008,0.002,2833.4,2833.3,13.51780355]
[1764570359916,0.002,2833.4,2833.3,13.03090355]
[1764570360510,0.002,2833.4,2833.3,13.51780355]
[1764570360711,0.002,2833.4,2833.3,20.07126629]
[1764570361815,0.002,2833.4,2833.3,13.51780355]
[1764570362110,0.002,2833.4,2833.3,20.07126629]
[1764570363216,0.4896,2833.4,2833.3,12.31170355]
[1764570363399,0.4896,2833.4,2833.3,12.53470355]
[1764570363713,0.002,2833.4,2833.3,12.53470355]
[1764570363947,0.002,2833.4,2833.3,13.02950355]
[1764570364432,0.4896,2833.4,2833.3,12.53470355]
[1764570364606,0.4896,2833.4,2833.3,10.30591602]
[1764570365205,0.002,2833.4,2833.3,10.30591602]
[1764570365805,0.002,2833.4,2833.3,10.80071602]
[1764570366407,0.002,2833.4,2833.3,6.55346274]
[1764570366408,0.4896,2833.4,2833.3,6.55346274]
[1764570366603,0.9741,2833.4,2833.3,10.08291602]
[1764570367420,0.4896,2833.4,2833.3,10.08291602]
[1764570370339,0.002,2833.4,2833.3,10.57771602]
[1764570371524,0.002,2833.4,2833.3,11.83206366]
[1764570380659,0.002,2833.4,2833.3,12.31896366]
[1764570382167,0.002,2833.4,2833.3,18.8724264]
[1764570382341,0.002,2833.4,2833.3,12.31896366]
[1764570383160,0.002,2833.4,2833.3,11.33726366]
[1764570383330,0.4722,2833.4,2833.3,11.33726366]
[1764570383526,0.4722,2833.4,2833.3,5.00680092]
[1764570383527,0.932,2833.4,2833.3,5.00680092]
[1764570384555,0.932,2833.4,2833.3,1.25434764]
[1764570384757,0.932,2833.4,2833.2,3.75255832]
[1764570384947,0.5484,2833.3,2833.2,3.75255832]
[1764570385531,0.90198948,2833.3,2833.2,3.75255832]
[1764570385951,0.5484,2833.3,2833.2,3.75255832]
[1764570386352,0.90198948,2833.3,2833.2,3.75255832]
[1764570387692,0.44218948,2833.3,2833.2,3.52955832]
[1764570387865,0.541,2833.3,2833.1,0.001]
[1764570388062,0.002,2833.4,2833.1,0.03629702]
[1764570388063,0.35558948,2833.4,2833.1,0.03629702]
[1764570388258,0.4747,2833.2,2833.1,3.56599946]
[1764570388771,1.28068948,2833.2,2833.1,3.56599946]
[1764570388976,0.4747,2833.2,2833.1,3.56599946]
[1764570389478,0.9271,2833.2,2833.1,3.56599946]
[1764570391146,0.002,2833.4,2833.1,4.02499946]
[1764570391346,0.4544,2833.4,2833.2,0.223]
[1764570391552,0.35358948,2833.3,2833.2,0.223]
[1764570391853,0.82828948,2833.3,2833.2,0.223]
[1764570392065,0.35358948,2833.2,2833.1,0.001]
[1764570392267,0.89738948,2833.2,2833.1,0.001]
[1764570393475,4.42696734,2833.2,2833.1,0.001]
[1764570394302,0.89738948,2833.2,2833.1,0.001]
[1764570394916,5.55806545,2833.2,2833.1,0.001]
[1764570395208,23.92505545,2833.2,2833.1,0.001]
[1764570395393,23.22666445,2833.2,2833.1,0.001]
[1764570395793,22.91514745,2833.2,2833.1,0.001]
[1764570396123,9.50146545,2833.2,2833.1,0.001]
[1764570400989,14.28638445,2833.2,2833.1,0.001]
[1764570401998,20.80751145,2833.2,2833.1,0.001]
[1764570402896,5.78106545,2833.2,2833.1,0.001]
[1764570403097,20.50483345,2833.2,2833.1,0.001]
[1764570403886,5.78106545,2833.2,2833.1,0.001]
[1764570404093,16.02313845,2833.2,2833.1,0.001]
[1764570405020,35.78106545,2833.2,2833.1,0.001]
[1764570405221,33.35709145,2833.2,2833.1,0.001]
[1764570406091,33.11418045,2833.2,2833.1,0.001]
[1764570407022,33.36833945,2833.2,2833.1,0.001]
[1764570407603,17.67302245,2833.2,2833.1,0.001]
[1764570408035,20.97703145,2833.2,2833.1,0.001]
[1764570408393,5.92259148,2833.2,2833.1,0.001]
[1764570408595,21.09281148,2833.2,2833.1,0.001]
[1764570409125,27.07477648,2833.2,2833.1,0.001]
[1764570409290,26.86763948,2833.2,2833.1,0.001]
[1764570409729,21.44724548,2833.2,2833.1,0.001]
[1764570410092,24.66591248,2833.2,2833.1,0.001]
[1764570411218,32.12424348,2833.2,2833.1,0.001]
[1764570412200,35.71483148,2833.2,2833.1,0.001]
[1764570413239,35.92459148,2833.2,2833.1,0.001]
[1764570414409,34.35364748,2833.2,2833.1,0.001]
[1764570415222,35.92459148,2833.2,2833.1,0.001]
[1764570416040,29.56623748,2833.2,2833.1,0.001]
[1764570416244,33.33361548,2833.2,2833.1,0.001]
[1764570417249,35.47633248,2833.2,2833.1,0.001]
[1764570417750,35.26878648,2833.2,2833.1,0.001]
[1764570418316,35.41761648,2833.2,2833.1,0.001]
[1764570419052,35.86026824,2833.2,2833.1,0.001]
[1764570419341,36.36724324,2833.2,2833.1,0.001]
[1764570420539,29.34990024,2833.2,2833.1,0.001]
[1764570420740,28.90724848,2833.2,2833.1,0.001]
[1764570421143,27.31802148,2833.2,2833.1,0.001]
[1764570421444,33.98977948,2833.2,2833.1,0.001]
[1764570421649,5.92459148,2833.2,2833.1,0.001]
[1764570421960,35.29268248,2833.2,2833.1,0.001]
[1764570422363,35.92459148,2833.2,2833.1,0.001]
[1764570423472,28.73941248,2833.2,2833.1,0.001]
[1764570424017,29.29321562,2833.2,2833.1,0.001]
[1764570424651,33.41393662,2833.2,2833.1,0.001]
[1764570425553,36.47839462,2833.2,2833.1,0.001]
[1764570428618,33.66402162,2833.2,2833.1,0.001]
[1764570428952,31.61337262,2833.2,2833.1,0.001]
[1764570429656,36.47839462,2833.2,2833.1,0.001]
[1764570432819,6.47839462,2833.2,2833.1,0.001]
[1764570433051,36.47839462,2833.2,2833.1,0.001]
[1764570435055,30.62732962,2833.2,2833.1,0.001]
[1764570435654,29.23352262,2833.2,2833.1,0.001]
[1764570436057,30.45925662,2833.2,2833.1,0.001]
[1764570436725,28.92649962,2833.2,2833.1,0.001]
[1764570436925,30.73418462,2833.2,2833.1,0.001]
[1764570437357,30.45357641,2833.2,2833.1,0.001]
[1764570438259,32.85752341,2833.2,2833.1,0.001]
[1764570439102,36.19778641,2833.2,2833.1,0.001]
[1764570442757,36.65968641,2833.2,2833.1,0.001]
[1764570442960,37.10233817,2833.2,2833.1,0.001]
[1764570444454,50.21789057,2833.2,2833.1,0.001]
[1764570444655,48.92690857,2833.2,2833.1,0.001]
[1764570444851,42.95396481,2833.2,2833.1,0.001]
[1764570445057,34.73312382,2833.2,2833.1,0.001]
[1764570445258,32.49805482,2833.2,2833.1,0.001]
[1764570446234,32.87365982,2833.2,2833.1,0.001]
[1764570446467,33.37095982,2833.2,2833.1,0.001]
[1764570446668,12.98967082,2833.2,2833.1,0.001]
[1764570446889,42.98967082,2833.2,2833.1,0.001]
[1764570447368,49.54744702,2833.2,2833.1,0.001]
[1764570448258,49.99009878,2833.2,2833.1,0.001]
[1764570452172,0.05,2833.1,2833.0,0.001]
[1764570452377,30.75909348,2832.7,2832.6,0.001]
[1764570452576,38.26546379,2832.7,2832.6,0.001]
[1764570452749,38.75076379,2832.7,2832.6,0.001]
[1764570452953,39.81250961,2832.7,2832.6,0.001]
[1764570453767,46.37028581,2832.7,2832.6,0.001]
[1764570454105,31.48468759,2832.3,2831.9,23.37]
[1764570454274,48.35393942,2832.3,2831.9,23.37]
[1764570454460,48.83923942,2832.3,2831.9,23.37]
[1764570454776,49.90116188,2832.3,2831.9,23.37]
[1764570455751,45.98530088,2832.3,2831.9,23.37]
[1764570455960,45.50000088,2832.3,2832.0,0.4746]
[1764570456348,45.50000088,2832.3,2832.2,1.6979]
[1764570456549,46.85134888,2832.3,2832.2,1.6979]
[1764570457183,45.64281588,2832.3,2832.2,1.6979]
[1764570457482,45.64281588,2832.3,2832.2,2.1725]
[1764570457483,12.85808568,2832.3,2832.2,2.1725]
[1764570457771,49.41586188,2832.3,2832.2,1.23]
[1764570457982,49.90116188,2832.3,2832.2,1.23]
[1764570458183,39.24267768,2832.3,2832.2,1.6979]
[1764570458553,40.89948968,2832.3,2832.2,1.6979]
[1764570459360,12.85808568,2832.3,2832.2,1.6979]
[1764570459559,42.73071268,2832.3,2832.2,1.6979]
[1764570461567,42.85808568,2832.3,2832.2,1.6979]
[1764570462071,35.45277068,2832.3,2832.2,2.1725]
[1764570462270,28.24014868,2832.3,2832.2,2.1725]
[1764570462579,27.36680268,2832.3,2832.2,2.1725]
[1764570462887,25.91672968,2832.3,2832.2,2.1725]
[1764570463389,23.38341168,2832.3,2832.2,2.1725]
[1764570463688,32.13864068,2832.3,2832.2,2.1725]
[1764570464596,28.33257068,2832.3,2832.2,2.1725]
[1764570464798,29.85608668,2832.3,2832.2,1.23]
[1764570464958,36.41386288,2832.3,2832.2,1.23]
[1764570465783,49.41586188,2832.3,2832.2,1.23]
[1764570466278,40.73199768,2832.3,2832.2,1.23]
[1764570466685,12.85808568,2832.3,2832.2,1.23]
[1764570466891,40.63204168,2832.3,2832.2,1.23]
[1764570467189,40.10334168,2832.3,2832.2,1.23]
[1764570467890,42.85808568,2832.3,2832.2,1.23]
[1764570468469,42.44133968,2832.3,2832.2,1.23]
[1764570468814,49.41586188,2832.3,2832.2,1.23]
[1764570468962,50.40581364,2832.3,2832.2,1.23]
[1764570469368,42.85808568,2832.3,2832.2,1.6979]
[1764570469670,40.87380468,2832.3,2832.2,1.6979]
[1764570469976,41.92004868,2832.3,2832.2,1.6979]
[1764570470180,40.68562268,2832.3,2832.2,1.6979]
[1764570470370,36.93554868,2832.3,2832.2,1.6979]
[1764570471003,37.25009168,2832.3,2832.2,1.6979]
[1764570471596,37.25009168,2832.3,2832.2,1.23]
[1764570471964,37.59799468,2832.3,2832.2,1.23]
[1764570472376,30.35961668,2832.3,2832.2,1.6979]
[1764570472901,25.75378368,2832.3,2832.2,2.1813]
[1764570473603,24.33414668,2832.3,2832.2,2.1813]
[1764570473824,16.64527237,2832.3,2832.2,2.1813]
[1764570473975,8.39530637,2832.3,2832.2,2.1813]
[1764570474175,8.80081037,2832.3,2832.2,2.1813]
[1764570474375,9.30340448,2832.3,2832.2,2.1813]
[1764570474586,9.52640448,2832.3,2832.2,2.1813]
[1764570474994,14.48882948,2832.3,2832.2,2.1813]
[1764570475501,6.30030948,2832.3,2832.2,2.1813]
[1764570475691,18.35562148,2832.3,2832.2,2.1813]
[1764570475893,18.30840648,2832.3,2832.2,2.1813]
[1764570476107,17.31925248,2832.3,2832.2,2.1813]
[1764570476640,16.27949548,2832.3,2832.2,2.1813]
[1764570477009,18.23332948,2832.3,2832.2,2.1813]
[1764570477610,17.27244748,2832.3,2832.2,2.1813]
[1764570478006,6.30030948,2832.3,2832.2,2.1813]
[1764570478212,18.24871848,2832.3,2832.2,2.1813]
[1764570479080,20.92474248,2832.3,2832.2,2.1813]
[1764570479505,27.48251868,2832.3,2832.2,2.1813]
[1764570480116,29.52538668,2832.3,2832.2,2.1813]
[1764570480317,29.52538668,2832.3,2832.2,1.23]
[1764570480678,29.52538668,2832.3,2832.2,1.7192]
[1764570480885,36.08316288,2832.3,2832.2,1.23]
[1764570481189,48.15960388,2832.3,2832.2,1.23]
[1764570482097,49.77566188,2832.3,2832.2,1.23]
[1764570482619,43.21788568,2832.3,2832.2,1.23]
[1764570482779,27.51295768,2832.3,2832.2,1.7192]
[1764570482984,14.35903348,2832.3,2832.2,2.2026]
[1764570483215,34.95001568,2832.3,2832.2,2.2026]
[1764570483514,34.95001568,2832.3,2832.2,1.7192]
[1764570483885,35.41411568,2832.3,2832.2,1.23]
[1764570484184,39.6551098,2832.3,2832.2,1.7192]
[1764570485218,39.6451098,2832.3,2832.2,1.7192]
[1764570486396,39.7659458,2832.3,2832.2,1.7192]
[1764570487419,42.8010008,2832.3,2832.2,1.23]
[1764570487792,49.408777,2832.3,2832.2,1.23]
[1764570488211,50.483827,2832.3,2832.2,1.23]
[1764570488539,0.05,2831.4,2830.7,3.69]
[1764570488737,9.31691559,2831.4,2831.1,0.1902]
[1764570489043,9.31691559,2831.4,2830.7,3.69]
[1764570489044,10.54050068,2831.4,2830.7,3.69]
[1764570489223,32.19476922,2831.4,2830.7,3.69]
[1764570490014,32.56696922,2831.4,2830.7,4.1734]
[1764570490215,34.85890322,2831.4,2830.7,4.1734]
[1764570490627,7.18808522,2831.4,2830.8,0.4834]
[1764570490915,34.62361122,2831.4,2830.8,0.4834]
[1764570491115,22.78120922,2831.4,2830.8,0.4834]
[1764570491315,28.80602822,2831.4,2830.8,0.4834]
[1764570491533,27.70677922,2831.4,2830.8,0.4834]
[1764570491747,27.65677922,2831.4,2830.7,3.69]
[1764570491944,27.09529922,2831.4,2830.8,0.4834]
[1764570492316,19.69142722,2831.4,2830.7,3.69]
[1764570492516,26.19920342,2831.4,2830.8,0.4834]
[1764570492717,25.82700342,2831.4,2830.7,3.69]
[1764570493125,7.51922651,2831.4,2831.3,15.2492]
[1764570493326,4.37294151,2831.4,2831.3,17.40814]
[1764570493725,4.77844551,2831.4,2831.3,17.40814]
[1764570493947,4.77844551,2831.4,2831.3,17.89154]
[1764570494166,4.77844551,2831.4,2831.3,17.40814]
[1764570494327,17.05007951,2831.4,2831.3,15.2492]
[1764570494532,20.58190122,2831.4,2831.3,15.7326]
[1764570494854,20.58190122,2831.4,2831.3,15.2492]
[1764570494855,17.45558351,2831.4,2831.3,15.2492]
[1764570495022,17.45558351,2831.4,2831.3,15.7326]
[1764570495421,19.38312451,2831.4,2831.3,15.7326]
[1764570495771,18.35812451,2831.4,2831.3,15.7326]
[1764570496053,15.08181751,2831.4,2831.3,15.7326]
[1764570496426,17.10681751,2831.4,2831.3,15.7326]
[1764570496826,16.06371751,2831.4,2831.3,15.7326]
[1764570497220,15.22116351,2831.4,2831.3,15.7326]
[1764570497424,14.20925251,2831.4,2831.3,15.7326]
[1764570498356,2.76996351,2831.4,2831.3,15.7326]
[1764570498543,15.07680651,2831.4,2831.3,15.7326]
[1764570498726,12.21476551,2831.4,2831.3,15.7326]
[1764570499240,12.21476551,2831.4,2831.3,15.7336]
[1764570499446,12.24597551,2831.4,2831.3,15.7336]
[1764570499644,15.77779722,2831.4,2831.3,15.7336]
[1764570499949,12.24597551,2831.4,2831.3,15.7336]
[1764570500455,17.26867451,2831.4,2831.3,15.7336]
[1764570500752,16.07680651,2831.4,2831.3,15.7336]
[1764570500953,14.24715151,2831.4,2831.3,15.7336]
[1764570501159,13.05180651,2831.4,2831.3,15.7336]
[1764570501457,18.82645122,2831.4,2831.3,15.7336]
[1764570501956,15.29462951,2831.4,2831.3,15.7336]
[1764570502658,23.02983151,2831.4,2831.3,15.7336]
[1764570503456,27.95720322,2831.4,2831.3,15.7336]
[1764570504635,36.30178522,2831.4,2831.3,15.7336]
[1764570505526,6.30178522,2831.4,2831.3,15.7336]
[1764570505731,36.30178522,2831.4,2831.3,15.7336]
[1764570506550,6.30178522,2831.4,2831.3,15.7336]
[1764570506750,36.30178522,2831.4,2831.3,15.7336]
[1764570507435,17.07536551,2831.4,2831.3,15.7336]
[1764570507836,5.80628451,2831.4,2831.3,15.7336]
[1764570508040,2.76996351,2831.4,2831.3,17.94098]
[1764570508262,5.25796351,2831.4,2831.3,17.94098]
[1764570508659,10.34913951,2831.4,2831.3,17.94098]
[1764570508963,10.34913951,2831.4,2831.3,15.7336]
[1764570508964,12.85596122,2831.4,2831.3,15.7336]
[1764570509364,9.32413951,2831.4,2831.3,15.7336]
[1764570509732,14.26555751,2831.4,2831.3,15.7336]
[1764570509933,12.26355751,2831.4,2831.3,15.7336]
[1764570510742,15.28435551,2831.4,2831.3,15.7336]
[1764570511141,26.87981729,2831.4,2831.3,2.19061454]
[1764570511441,26.99943097,2831.4,2831.3,1.20726454]
[1764570511662,14.07953497,2831.4,2831.3,0.79652432]
[1764570511865,44.07953497,2831.4,2831.3,0.79652432]
[1764570512042,0.05,2831.1,2831.0,0.001]
[1764570512248,38.33138558,2831.1,2831.0,0.001]
[1764570512448,38.69918558,2831.1,2831.0,0.001]
[1764570512645,39.26333734,2831.1,2831.0,0.001]
[1764570512840,42.7955333,2831.1,2831.0,0.001]
[1764570513037,42.23138154,2831.1,2831.0,0.001]
[1764570513567,39.55744154,2831.1,2831.0,0.001]
[1764570513767,40.00902654,2831.1,2831.0,0.001]
[1764570513976,36.52365954,2831.1,2831.0,0.001]
[1764570514217,36.47365954,2831.1,2831.0,0.001]
[1764570514346,26.48277954,2831.1,2831.0,0.4711]
[1764570514549,7.19395448,2831.1,2831.0,0.9588]
[1764570514751,4.27965248,2831.1,2831.0,0.9588]
[1764570514955,5.41075059,2831.1,2831.0,0.9588]
[1764570515151,5.00524659,2831.1,2831.0,0.9588]
[1764570515671,8.53744255,2831.1,2831.0,0.9588]
[1764570515872,8.94294655,2831.1,2831.0,0.9588]
[1764570516572,8.58935707,2831.1,2831.0,0.001]
[1764570516876,35.24088355,2831.1,2831.0,0.001]
[1764570517738,31.75919455,2831.1,2831.0,0.4711]
[1764570517948,25.15570455,2831.1,2831.0,0.4711]
[1764570519766,27.34720955,2831.1,2831.0,0.001]
[1764570520488,28.40940273,2831.1,2831.0,0.001]
[1764570520866,6.68817673,2831.1,2831.0,0.001]
[1764570521184,30.32088573,2831.1,2831.0,0.001]
[1764570521389,20.98764073,2831.1,2831.0,0.4711]
[1764570521558,20.98764073,2831.1,2831.0,0.9588]
[1764570521958,20.96774473,2831.1,2831.0,0.9588]
[1764570523008,22.05580873,2831.1,2831.0,0.9588]
[1764570523866,21.70966573,2831.1,2831.0,0.9588]
[1764570524062,24.96227673,2831.1,2831.0,0.001]
[1764570524264,25.34737673,2831.1,2831.0,0.001]
[1764570524793,22.71178273,2831.1,2831.0,0.4711]
[1764570524989,22.01926873,2831.1,2831.0,0.9588]
[1764570525188,14.43566673,2831.1,2831.0,0.9588]
[1764570525495,10.90347077,2831.1,2831.0,0.9588]
[1764570525899,6.30307673,2831.1,2831.0,0.9588]
[1764570526072,15.28372473,2831.1,2831.0,0.9588]
[1764570526796,14.40525573,2831.1,2831.0,0.9588]
[1764570526980,12.53325573,2831.1,2831.0,0.9588]
[1764570527179,15.49929073,2831.1,2831.0,0.9588]